Cogmind - Beta 15 @@@ ROGUE MODE // 2025.07.06 @ 13:20:24 Player: Minty Result: Self-destructed Performance ------------- Evolutions (7) 3500 Regions Visited (17) 3400 Robots Destroyed (141) 705 Value Destroyed (5208) 5208 Prototype IDs (63) 1260 Alien Tech Used (0) 0 Bonus (3262) 3262 TOTAL SCORE: 17335 Bonus ------- High Alert Combat Kills 867 Follower Combat Kills 1295 Entered DSFs 500 Aligned with FarCom 300 Met Data Miner 300 Cogmind --------- Core Integrity 80/1300 Matter 120/300 Energy 18/100 System Corruption 20% Temperature Cool (0) Movement Core (50) Location -3/Research Parts ------- > --- POWER (2) -------- (None) > --- PROPULSION (7) --- (None) > --- UTILITY (10) ----- Enhanced Optical Array Improved Targeting Computer Experimental Melee Analysis Suite Graphene Brace Improved System Guard > --- WEAPON (2) ------- (None) > --- INVENTORY (5) ---- Small Battery (100) Compact Matter Pod (0) Heavy Linear Accelerator Advanced Remote Datajack Peak State ------------ > --- POWER ------------ Hybrid Antimatter Reactor Particle Reactor > --- PROPULSION ------- Medium Treads Medium Treads Medium Treads Biometal Medium Treads Centrium Wheel Centrium Wheel Centrium Wheel > --- UTILITY ---------- Experimental Cooling System Experimental Cooling System Experimental Cooling System Experimental Coolant Injector High-capacity Storage Unit Heavy Armor Plating Graphene Brace Advanced Thermal Shield Advanced Force Field > --- WEAPON ----------- Enhanced Nova Cannon Enhanced Nova Cannon > --- INVENTORY -------- Improved VTOL Module Improved VTOL Module Cooled VTOL Module Medium Storage Unit Small Battery Long-range Sensor Array ECM Suite Improved System Guard Gamma Rifle AWS/Thermal Quantum Rifle Hypervelocity Railgun Precision Grenade Launcher Mini Smartbomb Launcher Advanced Remote Datajack Field Lobotomy Kit [Rating: 146] Favorites ----------- Power Particle Reactor Engine Light Ion Engine Power Core Light Fission Core Reactor Particle Reactor Propulsion Improved VTOL Module Treads Medium Treads Leg Aluminum Leg Wheel Centrium Wheel Flight Unit Improved VTOL Module Utility Hacking Suite Device Graphene Brace Storage Medium Storage Unit Processor Improved Targeting Computer Hackware Hacking Suite Protection Heavy Armor Plating Weapon Railgun Energy Gun EM Pulse Gun Energy Cannon Enhanced Nova Cannon Ballistic Gun Railgun Ballistic Cannon Heavy Linear Accelerator Launcher Grenade Launcher Special Weapon Field Lobotomy Kit Impact Weapon Impact Mace Slashing Weapon Makeshift Sword Build | -11 -10 -10 -9 -9 -9 -8 -8 -7 -7 -6 -6 -6 -5 -5 -5 -4 -3 ------- Run | Yrd Mat Min Mat Min Exi Min Mat Fac Sto Fac Low Dat Pro Fac DSF Fac Res Slots Evolved 14 | . . . 2 . . . 2 2 . 2 . . . 2 . 2 2 Power 1 | . . . . . . . . . . . . . . . . . 1 Propulsion 5 | . . . 1 . . . 1 . . . . . . 1 . 1 1 Utility 8 | . . . 1 . . . 1 2 . 2 . . . 1 . 1 . Weapon . | . . . . . . . . . . . . . . . . . . Parts Attached 140 | . 3 10 12 . 2 . 13 14 7 5 4 . 8 1 5 10 46 Power 17 | . . 3 1 . . . 1 3 1 1 . . 1 . 1 1 4 Engine 5 | . . 2 1 . . . . 1 1 . . . . . . . . Core 7 | . . 1 . . . . 1 2 . 1 . . 1 . 1 . . Reactor 5 | . . . . . . . . . . . . . . . . 1 4 Propulsion 38 | . . 4 5 . . . 9 . 3 . 2 . 2 . . 1 12 Treads 13 | . . 2 2 . . . . . . . . . . . . . 9 Leg . | . . . . . . . . . . . . . . . . . . Wheel 5 | . . 2 . . . . . . . . . . . . . . 3 Hover . | . . . . . . . . . . . . . . . . . . Flight 20 | . . . 3 . . . 9 . 3 . 2 . 2 . . 1 . Utility 53 | . 1 . 3 . 1 . 3 5 . 4 2 . 2 1 4 6 21 Device 22 | . 1 . 2 . . . 1 2 . 3 . . 1 1 3 1 7 Storage 8 | . . . . . . . . 1 . . . . . . . 1 6 Processor 8 | . . . 1 . . . . . . . . . 1 . . 2 4 Hackware 11 | . . . . . 1 . 2 2 . 1 1 . . . 1 2 1 Protection 4 | . . . . . . . . . . . 1 . . . . . 3 Artifact . | . . . . . . . . . . . . . . . . . . Weapon 32 | . 2 3 3 . 1 . . 6 3 . . . 3 . . 2 9 Energy Gun 7 | . . 2 1 . 1 . . 2 . . . . . . . . 1 Energy Cannon 3 | . . . . . . . . . . . . . . . . . 3 Ballistic Gun 11 | . 1 1 1 . . . . 2 1 . . . 1 . . 2 2 Ballistic Cannon 1 | . . . . . . . . . . . . . . . . . 1 Launcher 4 | . 1 . . . . . . . 1 . . . 1 . . . 1 Special Weapon 1 | . . . . . . . . . . . . . 1 . . . . Impact Weapon 3 | . . . . . . . . 2 1 . . . . . . . . Slashing Weapon 2 | . . . 1 . . . . . . . . . . . . . 1 Piercing Weapon . | . . . . . . . . . . . . . . . . . . Special Melee Weapon . | . . . . . . . . . . . . . . . . . . Unidentified Prototypes 19 | . . . 3 . . . 1 4 4 . . . . . . . 7 Corrupted Parts 1 | . . 1 . . . . . . . . . . . . . . . System Corruption 1 | . . 1 . . . . . . . . . . . . . . . Parts Lost 38 | . . 4 . . . . . 3 . 1 2 . 2 3 . 1 22 Power 6 | . . 1 . . . . . 1 . . 1 . . 1 . . 2 Propulsion 17 | . . 2 . . . . . 1 . . 1 . 1 2 . . 10 Utility 11 | . . . . . . . . 1 . 1 . . 1 . . 1 7 Weapon 4 | . . 1 . . . . . . . . . . . . . . 3 Highest Loss Streak 17 | . . 3 . . . . . 3 . 1 2 . 1 3 . 1 17 To Critical Strikes . | . . . . . . . . . . . . . . . . . . Average Backups 9 | . 7 7 7 8 7 7 7 7 8 9 7 9 8 7 8 8 13 Power . | . 1 . . . . . . . 1 1 . . . . . 1 . Propulsion 1 | . 4 3 2 2 1 . . . 1 4 3 3 2 1 . . . Utility 2 | . . 2 2 2 1 2 2 2 3 1 . 1 . . . 2 4 Weapon 4 | . 1 1 2 4 4 4 2 2 1 2 2 4 3 5 5 3 6 Tool/Special . | . . . . . . . . . . . . . . . . . . Unused Backups 30 | . . 7 . . 2 . . 5 7 . 2 . . . . 1 6 Power 5 | . . 2 . . . . . . 2 . . . . . . 1 . Propulsion 8 | . . 5 . . 2 . . . . . 1 . . . . . . Utility 10 | . . . . . . . . 2 5 . 1 . . . . . 2 Weapon 5 | . . . . . . . . 3 . . . . . . . . 2 Tool/Special 2 | . . . . . . . . . . . . . . . . . 2 Average Slot Usage (%) 89 | . 98 98 91 88 88 88 85 86 99 87 83 73 72 74 75 90 90 Engine 3 | . 14 12 11 11 11 11 4 . 6 1 1 6 4 3 . . . Core 1 | . . 1 . . . . 3 5 . 1 3 . . . 3 5 . Reactor 2 | . . . . . . . . . . . . . . . . . 7 Treads 7 | . . 3 29 . . . . . . . . . . . . . 15 Leg 1 | . 28 7 . . . . . . . . . . . . . . . Wheel 2 | . . 16 . . . . . . . . . . . . . . 3 Flight 16 | . . . 3 33 33 33 29 27 29 26 26 26 25 29 21 25 10 Device 13 | . 12 14 13 11 11 11 9 . 7 12 10 . . 1 12 11 21 Storage 8 | . 14 14 11 11 11 11 9 7 7 6 6 6 6 5 5 5 8 Processor 4 | . . . 8 11 5 . . . . . . . 4 5 2 7 6 Hackware 12 | . . . . . 6 11 16 33 30 26 27 33 27 23 26 26 4 Energy Gun 2 | . 14 13 3 . 1 . . . . . . . . . . . . Energy Cannon 1 | . . . . . . . . . . . . . . . . . 3 Ballistic Gun 4 | . 14 14 3 . . . . 6 1 . . . . 1 . 8 2 Impact Weapon 1 | . . . . . . . . 2 12 10 5 . . 1 . . . Slashing Weapon 1 | . . . 7 11 10 11 9 . . . . . . . . . . Peak Build Rating 146 | . 8 11 20 16 32 21 36 47 55 63 60 44 53 57 66 95 146 Average Rating 68 | . 6 8 13 16 19 21 26 39 51 56 51 44 42 52 57 89 120 On Entrance 34 | 6 6 8 11 16 16 21 21 30 45 55 56 44 44 44 40 64 90 Naked Turns . | . . . . . . . . . . . . . . . . . . Heaviest Build 133 | 11 12 19 20 11 17 11 16 22 27 28 24 21 24 25 20 32 133 Greatest Support 173 | 20 20 40 60 14 14 14 20 22 28 31 21 21 21 25 20 35 173 Greatest Overweight (x) 8 | . . 1 2 . 1 . . . . . 1 . 1 . 1 . 8 Average Overweight (x) . | . . . . . . . . . . . . . . . . . . Largest Inventory Capacity 20 | . 8 8 8 8 8 8 8 10 10 10 10 10 10 10 10 10 20 Average Capacity 11 | . 8 8 8 8 8 8 8 9 10 10 10 10 10 10 10 10 15 Most Carried 20 | . 8 8 8 8 8 8 8 10 10 10 10 10 10 9 10 10 20 Average Carried 10 | . 6 7 7 8 7 8 7 8 9 10 8 10 9 8 9 9 14 Final Capacity 10 | 8 8 8 8 8 8 8 8 10 10 10 10 10 10 10 10 10 5 Final Carried 10 | 6 8 8 8 8 8 8 8 10 10 10 10 10 10 9 10 10 5 Class Distribution -------------------- 37% | Hacker-Sprinter 34% | Scavenger-Mutant 18% | Mutant 8% | Hacker-Mutant Dominant Class ---------------- Mutant | -10/Materials Mutant | -10/Mines Mutant | -9/Materials Mutant | -9/Mines Scavenger-Mutant | -9/Exiles Scavenger-Mutant | -8/Mines Hacker-Sprinter | -8/Materials Hacker-Sprinter | -7/Factory Hacker-Sprinter | -7/Storage Hacker-Mutant | -6/Factory Hacker-Sprinter | -6/Lower Caves Hacker-Sprinter | -6/Data Miner Hacker-Sprinter | -5/Proximity Caves Hacker-Sprinter | -5/Factory Hacker-Sprinter | -5/DSF Hacker-Sprinter | -4/Factory Scavenger-Mutant | -3/Research Resources | -11 -10 -10 -9 -9 -9 -8 -8 -7 -7 -6 -6 -6 -5 -5 -5 -4 -3 ----------- Run | Yrd Mat Min Mat Min Exi Min Mat Fac Sto Fac Low Dat Pro Fac DSF Fac Res Matter Collected 3792 | 200 26 139 249 . . 40 162 302 189 55 164 . 293 . . 540 1433 Remotely . | . . . . . . . . . . . . . . . . . . Salvage Created 5214 | . 95 225 512 11 . 64 232 320 471 31 143 . 420 . . 251 2439 Parts 309 | . 11 25 36 . . 13 24 16 12 . 3 . 26 . . 10 133 Haulers Intercepted 6 | . . . 1 . . . 2 1 2 . . . . . . . . Recyclers Shooed 7 | . 1 . 3 . . . . 1 1 . . . . . . . 1 Parts Field Recycled . | . . . . . . . . . . . . . . . . . . Retrieved Matter . | . . . . . . . . . . . . . . . . . . Parts Self-Destructed 39 | . . . . . . . . . . . 2 . 37 . . . . Prevented 4 | . . . . . . . . . . . . . 4 . . . . Kills | -11 -10 -10 -9 -9 -9 -8 -8 -7 -7 -6 -6 -6 -5 -5 -5 -4 -3 ------- Run | Yrd Mat Min Mat Min Exi Min Mat Fac Sto Fac Low Dat Pro Fac DSF Fac Res Combat Hostiles Destroyed 90 | . 3 3 13 1 . . 5 3 5 . 6 . 11 . . 3 37 Melee 9 | . . . 2 1 . . 2 1 1 . 1 . 1 . . . . Guns 23 | . . 3 5 . . . . 2 . . . . . . . 3 10 Cannons 20 | . . . . . . . . . . . . . . . . . 20 AOE 31 | . 3 . 6 . . . 3 . . . 3 . 9 . . . 7 Classes Destroyed 17 | . 4 3 4 . . . . . . . 2 . 2 . . . 2 Worker 8 | . . . 1 . . . . 2 . . . . . . . . 5 Builder 12 | . 1 1 1 . . 2 . 1 . . . . 1 . . 1 4 Tunneler 6 | . . 3 . . . 2 . . . . . . . . . . 1 Hauler 6 | . . . 1 . . . 2 1 2 . . . . . . . . Recycler 5 | . . . 2 . . . . 1 1 . . . . . . . 1 Minesweeper 1 | . . . . . . . . . . . . . 1 . . . . Mechanic 3 | . . . 1 . . . . . . 1 . . . . . . 1 Operator 5 | . 1 . . . . . 1 . 1 . . . . . . 2 . Watcher 4 | . 1 . . . . . 1 . 1 . . . . . . . 1 Swarmer 26 | . 3 . 8 1 . . 3 1 . . 3 . 3 . . . 4 Grunt 32 | . . 1 4 . . . 1 2 4 . . . 6 . . 3 11 Sentry 10 | . . 2 1 . . . 1 . 1 . . . . . . . 5 Specialist 5 | . . . . . . . . . . . . . . . . . 5 Hunter 4 | . . . . . . . . . . . . . 2 . . . 2 Programmer 11 | . . . . . . . . . . . . . . . . . 11 Master Thief 1 | . . . . . . . . . . . 1 . . . . . . Thug 1 | . . . . . . . . . . . 1 . . . . . . Mutant 1 | . . . . . . . . . . . 1 . . . . . . Best Kill Streak 11 | . 5 2 10 1 . 4 3 4 4 2 3 . 6 . . 2 11 Combat Bots Only 9 | . 3 2 9 1 . . 3 2 3 . 3 . 6 . . 2 8 Max Kills in Single Turn 5 | . 3 1 5 1 . 1 2 1 1 1 1 . 4 . . 1 5 Gunslinging . | . . . . . . . . . . . . . . . . . . Exploded 4 | . 2 . 4 . . . 2 . . . 1 . 4 . . . 3 Melee 1 | . . . 1 1 . . 1 1 1 . 1 . 1 . . . . Uniques/NPCs Destroyed . | . . . . . . . . . . . . . . . . . . Combat | -11 -10 -10 -9 -9 -9 -8 -8 -7 -7 -6 -6 -6 -5 -5 -5 -4 -3 -------- Run | Yrd Mat Min Mat Min Exi Min Mat Fac Sto Fac Low Dat Pro Fac DSF Fac Res Hostile Shots Fired 1129 | . 12 37 42 4 . . 33 25 84 27 42 . 38 3 1 29 752 Missed 453 | . 6 10 12 1 . . 19 8 48 15 19 . 11 . . 16 288 Hits 676 | . 6 27 30 3 . . 14 17 36 12 23 . 27 3 1 13 464 Melee 5 | . . . . . . . . . . . 5 . . . . . . Projectile 671 | . 6 27 30 3 . . 14 17 36 12 18 . 27 3 1 13 464 Critical Strikes 35 | . . 2 . . . . 1 1 . . 2 . 2 . . 4 23 Actively Blocked 27 | . . . . . . . . . . . . . . . . 4 23 Part Disruptions 3 | . . . . . . . . . . . . . . . . . 3 Damage Taken 10595 | . 72 387 343 39 . . 206 279 358 164 587 . 480 85 76 269 7250 Core 2345 | . 21 106 66 33 . . 65 80 177 94 304 . 133 . . 46 1220 Absorbed by Shields 1466 | . . . . . . . . 24 . . . . . . . . 1442 Ignored by Resistances 713 | . . . . . . . . . . . . . . . . . 713 Regen/Repaired (Parts) 376 | . . . . . . . 51 41 20 46 . . . . . 58 160 Core Remaining (%) 76 | 100 . 49 . . . 75 88 . 63 . . . 37 . 100 96 . Volleys Fired 228 | . 8 30 15 . . . 6 19 . . 8 . 10 . 1 33 98 Largest 2 | . 2 2 2 . . . 1 2 . . 1 . 2 . 1 2 2 Hottest 240 | . 60 85 79 . . . 30 55 . . 36 . 75 . . 70 240 Shots Fired 413 | . 15 57 28 . . . 6 31 . . 8 . 12 . 1 66 189 Gun 287 | . 14 57 26 . . . . 31 . . . . 4 . . 66 89 Cannon 90 | . . . . . . . . . . . . . . . . . 90 Launcher 31 | . 1 . 2 . . . 6 . . . 8 . 7 . . . 7 Special 5 | . . . . . . . . . . . . . 1 . 1 . 3 Kinetic 228 | . 7 30 13 . . . . 27 . . . . 4 . . 66 81 Thermal 120 | . . 9 13 . . . . . . . . . . . . . 98 Explosive 31 | . 1 . 2 . . . 6 . . . 8 . 7 . . . 7 Electromagnetic 29 | . 7 18 . . . . . 4 . . . . . . . . . Robot Hit Streak 12 | . 2 8 8 . . . 2 5 . . 4 . 5 . 1 6 12 Robot Miss Streak 6 | . 6 3 2 . . . 2 3 . . 2 . 2 . . 5 5 Penetration Max 1 | . . . . . . . . . . . . . . . . 1 . Secondary Targets 4 | . . 1 1 . . . . . . . . . . . . 1 1 Max Gunslinging Chain 1 | . . 1 1 . . . . . . . . . . . . 1 1 Autonomous 47 | . . . . . . . . . . . . . . . . . 47 Shots Hit Robots 325 | . 5 30 31 1 . 4 17 22 26 1 15 . 11 . 1 28 133 Core Hits 199 | . 10 13 17 1 . 4 15 9 3 . 10 . 24 . . 12 81 Critical Kills 5 | . . . . . . . . . 1 . . . . . . . 4 Critical Parts Destroyed 5 | . . . . . . . . . 4 . 1 . . . . . . Critical Strikes 21 | . . . 1 . . . 2 1 5 . 1 . . . . . 11 Burn 1 | . . . 1 . . . . . . . . . . . . . . Destroy 4 | . . . . . . . . . . . . . . . . . 4 Blast 6 | . . . . . . . . . . . . . . . . . 6 Corrupt 1 | . . . . . . . . 1 . . . . . . . . . Smash 6 | . . . . . . . . . 5 . 1 . . . . . . Sever 3 | . . . . . . . 2 . . . . . . . . . 1 Melee Attacks 113 | . . . 21 2 . 4 19 2 42 2 13 . 5 2 . . 1 Impact 66 | . . . . . . . . 2 42 2 13 . 5 2 . . . Slashing 47 | . . . 21 2 . 4 19 . . . . . . . . . 1 Piercing . | . . . . . . . . . . . . . . . . . . Sneak Attacks 23 | . . . 6 . . 4 5 1 4 1 . . 2 . . . . Combat Hostiles 2 | . . . . . . . 1 . . . . . 1 . . . . Follow-up Attacks 3 | . . . . . . . . . 3 . . . . . . . . Damage Inflicted 17384 | . 336 355 1390 37 . 318 1383 831 1414 95 1332 . 1578 . . 787 7528 Guns 3773 | . 66 355 198 . . . . 356 . . . . 52 . . 787 1959 Cannons 3975 | . . . . . . . . . . . . . . . . . 3975 Explosions 4845 | . 270 . 364 . . . 512 300 . . 689 . 1187 . . . 1523 Melee 4765 | . . . 824 37 . 318 871 175 1414 95 643 . 339 . . . 49 Ramming 26 | . . . 4 . . . . . . . . . . . . . 22 Kinetic 4736 | . 35 108 95 . . . . 323 . . . . 52 . . 787 3336 Thermal 3156 | . 28 127 103 . . . . 300 . . . . . . . . 2598 Explosive 4403 | . 128 . 364 . . . 512 . . . 689 . 1187 . . . 1523 Electromagnetic 298 | . 145 120 . . . . . 33 . . . . . . . . . Impact 2666 | . . . . . . . . 175 1414 95 643 . 339 . . . . Slashing 2099 | . . . 824 37 . 318 871 . . . . . . . . . 49 Piercing . | . . . . . . . . . . . . . . . . . . Highest Corruption 19 | . . 1 . . . . . . . . . . . . . . 19 Average Corruption 4 | . . 1 . . . . . . . . . . . . . . 4 Corruption Purged . | . . . . . . . . . . . . . . . . . . Corruption Blocked . | . . . . . . . . . . . . . . . . . . Effects 12 | . . 2 . . . . . . . . . . . . . . 10 Message Errors 3 | . . 1 . . . . . . . . . . . . . . 2 Matter Fused 1 | . . . . . . . . . . . . . . . . . 1 Heat Flow Errors 1 | . . . . . . . . . . . . . . . . . 1 Energy Discharges 3 | . . . . . . . . . . . . . . . . . 3 Data Loss (minor) 3 | . . . . . . . . . . . . . . . . . 3 Weapon Failures 1 | . . 1 . . . . . . . . . . . . . . . Overload Shots . | . . . . . . . . . . . . . . . . . . Overflow Damage 1693 | . 2 . 134 . . . 13 165 404 80 418 . 81 . . . 396 Projectiles 394 | . . . . . . . . . . . . . . . . . 394 Explosions 218 | . 2 . 28 . . . 13 55 . . 101 . 17 . . . 2 Melee 1081 | . . . 106 . . . . 110 404 80 317 . 64 . . . . Knockbacks 19 | . . . . . . . . . 5 1 . . 1 . . . 12 Impact 7 | . . . . . . . . . 5 1 . . 1 . . . . Kinetic 11 | . . . . . . . . . . . . . . . . . 11 Secondary 1 | . . . . . . . . . . . . . . . . . 1 Self-Inflicted Damage 310 | . 18 . 44 . . . . . . . 161 . . . . . 87 Shots 8 | . 1 . 2 . . . . . . . 4 . . . . . 1 Rammed 3 | . . . . . . . . . . . . . . . . . 3 Targets Rammed 5 | . . . 1 . . . . . . . . . . . . . 4 Kicked . | . . . . . . . . . . . . . . . . . . Crushed 2 | . . . 1 . . . . . . . . . . . . . 1 Highest Temperature 199 | . . 50 3 . . . 22 101 . 3 . . 25 . . 14 199 Average Temperature 58 | . . 17 3 . . . 11 37 . 3 . . 16 . . 5 100 Received Heat Transfer 1625 | . 6 186 93 . . . 99 54 144 36 63 . 108 12 . 42 782 Siege Activations . | . . . . . . . . . . . . . . . . . . Martial Activations . | . . . . . . . . . . . . . . . . . . Shielding Activations . | . . . . . . . . . . . . . . . . . . Robots Disrupted . | . . . . . . . . . . . . . . . . . . Combat Hostiles . | . . . . . . . . . . . . . . . . . . Robots Corrupted 11 | . . . . . . . . . 6 1 2 . 1 . . . 1 Combat Hostiles 7 | . . . . . . . . . 4 . 2 . 1 . . . . Parts Fried 13 | . 1 2 . . . . . 1 5 . 2 . 1 . . . 1 Impact Corruptions 26 | . . . . . . . . 2 12 3 6 . 2 . . . 1 Robots Melted . | . . . . . . . . . . . . . . . . . . Combat Hostiles . | . . . . . . . . . . . . . . . . . . Parts Melted 9 | . . 1 1 . . . . . . . . . . . . 1 6 Heat Transferred 3413 | . . 296 333 . . . . 250 . . . . . . . . 2534 Parts Sabotaged . | . . . . . . . . . . . . . . . . . . Parts Stolen 2 | . . . . . . . . . . . 2 . . . . . . Parts Stripped . | . . . . . . . . . . . . . . . . . . Power Chain Reactions 1 | . 1 . . . . . . . . . . . . . . . . Alert | -11 -10 -10 -9 -9 -9 -8 -8 -7 -7 -6 -6 -6 -5 -5 -5 -4 -3 ------- Run | Yrd Mat Min Mat Min Exi Min Mat Fac Sto Fac Low Dat Pro Fac DSF Fac Res Maximum Alert Level 4 | . . . 1 . . . 1 1 1 . . . . 1 . 2 4 Low Security (%) 44 | . 100 100 82 100 . 100 81 82 38 100 . . . . 100 30 . Level 1 30 | . . . 17 . . . 18 17 61 . . . . 100 . 41 44 Level 2 15 | . . . . . . . . . . . . . . . . 27 30 Level 3 8 | . . . . . . . . . . . . . . . . . 20 Level 4 1 | . . . . . . . . . . . . . . . . . 3 Level 5 . | . . . . . . . . . . . . . . . . . . High Security . | . . . . . . . . . . . . . . . . . . Max Security . | . . . . . . . . . . . . . . . . . . Peak Influence 1228 | . 104 43 227 163 . 10 310 275 350 163 . . . 283 177 544 1228 Initial 279 | . . 34 . 78 . . . 140 120 158 . . . 279 177 92 276 Average 297 | . 30 8 79 108 . 3 72 164 238 128 . . . 279 177 295 535 Influence Increases 5129 | . 119 113 362 120 . 20 378 305 370 6 115 . 709 4 . 816 1692 Destroy 0b10 Robot/C 2460 | . 60 80 260 20 . . 100 60 100 . 60 . 400 . . 400 920 Destroy 0b10 Robot/NC 280 | . 15 20 30 . . 20 20 25 25 5 . . 10 . . 20 90 Destroy Leader 452 | . 12 10 42 10 . . 36 2 36 . 10 . 20 . . 82 192 Allied During Kill 219 | . . 3 . . . . . . . . . . 69 . . 76 71 Successful Hack 133 | . . . . . . . 4 42 12 . . . . . . 36 39 Select Force Hacks 60 | . . . . . . . 60 . . . . . . . . . . Disable Machine 330 | . 30 . 15 . . . 15 90 45 . . . . . . 60 75 Destroy Structure 370 | . 2 . 15 . . . 53 11 2 1 . . . 4 . 82 200 Partial Spotted 135 | . . . . . . . 15 15 90 . . . . . . . 15 Lose Combat Pursuer 690 | . . . . 90 . . 75 60 60 . 45 . 210 . . 60 90 Influence Decreases 4027 | . 30 202 160 144 178 20 68 350 285 272 199 . 265 195 76 465 1118 Entered New Map 1474 | . . 55 . 124 178 . . 170 145 192 32 . . 165 76 85 252 Time Decay 1773 | . 30 107 160 20 . 20 68 140 120 70 107 . 115 . . 230 586 Lost Part 370 | . . 40 . . . . . 30 . 10 20 . 10 30 . 10 220 Lost Ally 410 | . . . . . . . . 10 20 . 40 . 140 . . 140 60 Squads Dispatched 39 | . 1 . . . . . 8 3 2 . . . 1 . . 9 15 Investigation 18 | . 1 . . . . . 5 2 2 . . . 1 . . 4 3 Extermination 6 | . . . . . . . . . . . . . . . . 1 5 Reinforcement 12 | . . . . . . . 3 1 . . . . . . . 3 5 Assault 2 | . . . . . . . . . . . . . . . . . 2 Garrison 1 | . . . . . . . . . . . . . . . . 1 . Intercept . | . . . . . . . . . . . . . . . . . . Searches Triggered . | . . . . . . . . . . . . . . . . . . Data Miner Redirects 2 | . . . . . . . . . . . . . . . . . 2 Construction Impeded 5 | . . . . . . . 1 . . . . . . . . 2 2 Haulers Reinforced 1 | . . . . . . . . 1 . . . . . . . . . Active Scanning Responses . | . . . . . . . . . . . . . . . . . . Cargo Convoy Interrupts 1 | . . . . . . . . . . . . . . . . . 1 Stealth | -11 -10 -10 -9 -9 -9 -8 -8 -7 -7 -6 -6 -6 -5 -5 -5 -4 -3 --------- Run | Yrd Mat Min Mat Min Exi Min Mat Fac Sto Fac Low Dat Pro Fac DSF Fac Res Distress Signals 21 | . 1 . 2 . . . 5 . 2 . . . 1 . . 3 7 Communications Jammed . | . . . . . . . . . . . . . . . . . . Distress Signals . | . . . . . . . . . . . . . . . . . . Times Spotted 245 | . 7 4 20 8 . . 17 6 17 2 19 . 34 1 1 21 88 Peak Tracking Total 25 | . 4 2 9 6 . . 8 3 5 1 6 . 13 1 1 4 25 Tactical Retreats 22 | . . . . 2 . . 4 2 3 . 1 . 7 . . 1 2 Traps | -11 -10 -10 -9 -9 -9 -8 -8 -7 -7 -6 -6 -6 -5 -5 -5 -4 -3 ------- Run | Yrd Mat Min Mat Min Exi Min Mat Fac Sto Fac Low Dat Pro Fac DSF Fac Res Traps Triggered 8 | . 1 . . . . . 2 . . 1 . . . . 1 . 3 Indirectly 1 | . 1 . . . . . . . . . . . . . . . . Trap Hack Attempts . | . . . . . . . . . . . . . . . . . . Triggered . | . . . . . . . . . . . . . . . . . . Disarmed . | . . . . . . . . . . . . . . . . . . Reprogrammed . | . . . . . . . . . . . . . . . . . . Reused . | . . . . . . . . . . . . . . . . . . Traps Extracted . | . . . . . . . . . . . . . . . . . . Installed . | . . . . . . . . . . . . . . . . . . Triggered . | . . . . . . . . . . . . . . . . . . Most Traps Carried 2 | . . . . . . . . . . . . . 2 . . . . Objects Rigged 8 | . . . . . . . . 8 . . . . . . . . . Exploded 1 | . . . . . . . . 1 . . . . . . . . . Machines | -11 -10 -10 -9 -9 -9 -8 -8 -7 -7 -6 -6 -6 -5 -5 -5 -4 -3 ---------- Run | Yrd Mat Min Mat Min Exi Min Mat Fac Sto Fac Low Dat Pro Fac DSF Fac Res Machines Disabled 24 | . 2 1 1 . . . 1 6 3 . . . 1 . . 4 5 Max in Single Turn 5 | . 1 1 1 . . . 1 5 1 . . . . . . 1 1 Garrison Access 1 | . . . . . . . . . 1 . . . . . . . . Machines Repaired . | . . . . . . . . . . . . . . . . . . Machines Dismantled . | . . . . . . . . . . . . . . . . . . Machines Sabotaged . | . . . . . . . . . . . . . . . . . . Overloaded Fab Kills . | . . . . . . . . . . . . . . . . . . Hacking | -11 -10 -10 -9 -9 -9 -8 -8 -7 -7 -6 -6 -6 -5 -5 -5 -4 -3 --------- Run | Yrd Mat Min Mat Min Exi Min Mat Fac Sto Fac Low Dat Pro Fac DSF Fac Res Machines Accessed 50 | . 2 . . . 2 . 6 9 5 3 . 4 3 2 . 7 7 Terminals 21 | . 1 . . . . . 3 6 3 . . . 1 1 . 3 3 Fabricators 5 | . . . . . . . . . . 1 . . 1 . . 2 1 Repair Stations 6 | . . . . . . . 1 1 1 1 . . . . . 1 1 Recycling Units 9 | . 1 . . . . . . 2 . 1 . . 1 1 . 1 2 Scanalyzers 2 | . . . . . . . 2 . . . . . . . . . . Garrison Access 1 | . . . . . . . . . 1 . . . . . . . . Total Hacks 185 | . 9 . . . 2 . 25 32 11 11 . 32 7 3 . 32 21 Successful 129 | . 3 . . . 2 . 19 21 6 8 . 32 4 3 . 21 10 Failed 56 | . 6 . . . . . 6 11 5 3 . . 3 . . 11 11 Catastrophic 8 | . 2 . . . . . 2 1 1 . . . . . . 1 1 Database Lockouts . | . . . . . . . . . . . . . . . . . . Manual 56 | . 5 . . . 2 . 11 10 4 2 . . 1 . . 9 12 Terminals 70 | . 5 . . . . . 11 21 9 . . . 1 1 . 12 10 Fabricators 25 | . . . . . . . . . . 6 . . 4 . . 12 3 Repair Stations 19 | . . . . . . . 4 6 1 2 . . . . . 4 2 Recycling Units 26 | . 4 . . . . . . 5 . 3 . . 2 2 . 4 6 Scanalyzers 10 | . . . . . . . 10 . . . . . . . . . . Garrison Access 1 | . . . . . . . . . 1 . . . . . . . . Terminal Hacks 57 | . . . . . 2 . 4 10 3 . . 32 1 1 . 3 1 Record 12 | . . . . . 1 . . . . . . 11 . . . . . Part Schematic 12 | . . . . . . . . . . . . 12 . . . . . Robot Schematic 7 | . . . . . . . . . . . . 6 . . . . 1 Robot Analysis 3 | . . . . . . . . 2 . . . . . . . 1 . Prototype ID Bank 7 | . . . . . . . . 1 2 . . 3 . . . 1 . Open Door 1 | . . . . . . . . . . . . . 1 . . . . Open DSF 1 | . . . . . . . . . . . . . . 1 . . . Branch Access Points 1 | . . . . . . . . 1 . . . . . . . . . Emergency Access Points 1 | . . . . . . . . . . . . . . . . 1 . Machine Index 1 | . . . . . . . . 1 . . . . . . . . . Repair Station Index 1 | . . . . . . . . 1 . . . . . . . . . Locate Traps 3 | . . . . . . . . 2 1 . . . . . . . . Investigation Status 2 | . . . . . . . 2 . . . . . . . . . . Reinforcement Status 1 | . . . . . . . 1 . . . . . . . . . . Recall Investigation 2 | . . . . . . . 1 1 . . . . . . . . . Recall Reinforcements 1 | . . . . . . . . 1 . . . . . . . . . Proto ID Catalog 1 | . . . . . 1 . . . . . . . . . . . . Fabricator Hacks 13 | . . . . . . . . . . 2 . . 2 . . 8 1 Network Status 3 | . . . . . . . . . . 1 . . . . . 2 . Load Schematic 4 | . . . . . . . . . . . . . 1 . . 3 . Build 6 | . . . . . . . . . . 1 . . 1 . . 3 1 Repair Station Hacks 11 | . . . . . . . 4 3 . 2 . . . . . 2 . Scan Component 6 | . . . . . . . 2 2 . 1 . . . . . 1 . Repair 5 | . . . . . . . 2 1 . 1 . . . . . 1 . Recycling Unit Hacks 17 | . 3 . . . . . . 3 . 2 . . 1 2 . 3 3 Process 2 | . 1 . . . . . . . . . . . . . . 1 . Report Inventory 9 | . 1 . . . . . . 2 . 1 . . 1 1 . 1 2 Retrieve Matter 2 | . 1 . . . . . . . . . . . . . . 1 . Retrieve Components 4 | . . . . . . . . 1 . 1 . . . 1 . . 1 Scanalyzer 7 | . . . . . . . 7 . . . . . . . . . . Insert Component 3 | . . . . . . . 3 . . . . . . . . . . Analyze 4 | . . . . . . . 4 . . . . . . . . . . Garrison Access Hacks 1 | . . . . . . . . . 1 . . . . . . . . Seal Access 1 | . . . . . . . . . 1 . . . . . . . . Unauthorized Hacks 23 | . . . . . . . 4 5 2 2 . . . . . 5 5 Terminals 12 | . . . . . . . 2 5 1 . . . . . . 2 2 Track 1 | . . . . . . . . . . . . . . . . 1 . Assimilate 3 | . . . . . . . . 1 1 . . . . . . . 1 Botnet 6 | . . . . . . . 2 3 . . . . . . . . 1 Detonate 1 | . . . . . . . . 1 . . . . . . . . . Operators 1 | . . . . . . . . . . . . . . . . 1 . Fabricators 6 | . . . . . . . . . . 2 . . . . . 3 1 Prioritize 4 | . . . . . . . . . . 1 . . . . . 2 1 Haulers 2 | . . . . . . . . . . 1 . . . . . 1 . Repair Stations 2 | . . . . . . . . . 1 . . . . . . . 1 Patch 2 | . . . . . . . . . 1 . . . . . . . 1 Recycling Units 1 | . . . . . . . . . . . . . . . . . 1 Mask 1 | . . . . . . . . . . . . . . . . . 1 Scanalyzers 2 | . . . . . . . 2 . . . . . . . . . . Extract 2 | . . . . . . . 2 . . . . . . . . . . Garrison Access . | . . . . . . . . . . . . . . . . . . Data Cores Recovered 2 | . . . . . . . . . 1 . . . . . . . 1 Used 1 | . . . . . . . . . . . . . . . . . 1 Hacking Detections 32 | . 1 . . . . . 3 8 3 2 . . 2 1 . 7 5 Full Trace Events 12 | . 1 . . . . . 1 2 1 . . . 1 . . 4 2 Feedback Events . | . . . . . . . . . . . . . . . . . . Feedback Blocked . | . . . . . . . . . . . . . . . . . . Robot Schematics Acquired 7 | . . . . . . . . . . . . 6 . . . . 1 Robots Built 8 | . . . . . . . . . . . . . 2 . . 6 . Authchips 2 | . . . . . . . . . . . . . . . . 2 . Time 412 | . . . . . . . . . . 134 . . 93 . . 185 . Total Robot Build Rating 56 | . . . . . . . . . . . . . 14 . . 42 . Part Schematics Acquired 23 | . . . . . . . 11 . . . . 12 . . . . . Parts Built 2 | . . . . . . . . . . . . . . . . . 2 Authchips . | . . . . . . . . . . . . . . . . . . Time 139 | . . . . . . . . . . . . . . . . . 139 Total Part Build Rating 18 | . . . . . . . . . . . . . . . . . 18 Parts Repaired 5 | . . . . . . . 2 1 . 1 . . . . . 1 . Time 208 | . . . . . . . 77 26 . 70 . . . . . 35 . Parts Recycled . | . . . . . . . . . . . . . . . . . . Recycled Matter 43 | . 7 . . . . . . . . . . . . . . 36 . Retrieved Matter 43 | . 7 . . . . . . . . . . . . . . 36 . Retrieved Components 10 | . . . . . . . . 3 . 1 . . . 3 . . 3 Parts Scanalyzed 3 | . . . . . . . 3 . . . . . . . . . . Part Schematics Acquired 3 | . . . . . . . 3 . . . . . . . . . . Parts Damaged . | . . . . . . . . . . . . . . . . . . Bothacking | -11 -10 -10 -9 -9 -9 -8 -8 -7 -7 -6 -6 -6 -5 -5 -5 -4 -3 ------------ Run | Yrd Mat Min Mat Min Exi Min Mat Fac Sto Fac Low Dat Pro Fac DSF Fac Res Used RIF Installer . | . . . . . . . . . . . . . . . . . . Robots Hacked . | . . . . . . . . . . . . . . . . . . Non-combat . | . . . . . . . . . . . . . . . . . . Combat . | . . . . . . . . . . . . . . . . . . Robot Hacks Applied . | . . . . . . . . . . . . . . . . . . Relay Couplers Released 1 | . . . . . . . . . 1 . . . . . . . . Machine Destruction 1 | . . . . . . . . . 1 . . . . . . . . Fabnet Peak Effective % . | . . . . . . . . . . . . . . . . . . Robots Rewired 9 | . . . . . . . . 1 . . 2 . 6 . . . . Allies Hacked 2 | . . . . . . . . . . . . . . . . 1 1 Hacks Repelled . | . . . . . . . . . . . . . . . . . . Allies | -11 -10 -10 -9 -9 -9 -8 -8 -7 -7 -6 -6 -6 -5 -5 -5 -4 -3 -------- Run | Yrd Mat Min Mat Min Exi Min Mat Fac Sto Fac Low Dat Pro Fac DSF Fac Res Total Allies 26 | . . 1 . . . . . 2 1 . 2 . 9 . 1 6 4 Largest Group 7 | . . 1 . . . . . 2 1 . 1 . 7 2 3 5 2 Highest-Rated Group 414 | . . 31 . . . . . 66 26 . 31 . 287 112 254 414 258 Highest-Rated Ally 142 | . . 31 . . . . . 40 26 . 31 . 85 56 142 142 142 Total Orders . | . . . . . . . . . . . . . . . . . . Ally Attacks 159 | . . 3 . . . . . . . . 9 . 44 . . 66 37 Total Damage 7537 | . . 43 . . . . . . . . 158 . 1450 . . 3558 2328 Kills 44 | . . 1 . . . . . . . . 1 . 9 . . 18 15 Allies Corrupted 3 | . . . . . . . . . . . 1 . . . . 1 1 Allies Melted 1 | . . . . . . . . . . . . . 1 . . . . Field Lobotomies 5 | . . . . . . . . . . . . . 1 . 1 . 3 Intel | -11 -10 -10 -9 -9 -9 -8 -8 -7 -7 -6 -6 -6 -5 -5 -5 -4 -3 ------- Run | Yrd Mat Min Mat Min Exi Min Mat Fac Sto Fac Low Dat Pro Fac DSF Fac Res Active Infowar (turns) 2284 | . . . 300 51 39 . . 3 . 89 139 . . . 100 499 1064 Optics 422 | . . . . . . . . . . . . . . . . . 422 Sensors 1415 | . . . 300 51 39 . . . . 89 139 . . . 100 499 198 Jamming 471 | . . . . . . . . . . . . . . . 27 . 444 ECM 3 | . . . . . . . . 3 . . . . . . . . . Robot Analysis Total 3 | . . . . . . . . 2 . . . . . . . 1 . Derelict Logs Recovered 4 | . . 2 . . . . . . . . 1 . 1 . . . . Drone Launches . | . . . . . . . . . . . . . . . . . . Drone Recoveries . | . . . . . . . . . . . . . . . . . . Exploration | -11 -10 -10 -9 -9 -9 -8 -8 -7 -7 -6 -6 -6 -5 -5 -5 -4 -3 ------------- Run | Yrd Mat Min Mat Min Exi Min Mat Fac Sto Fac Low Dat Pro Fac DSF Fac Res Turns Passed 5205 | . 143 494 346 51 100 63 274 289 254 151 222 31 317 18 115 499 1838 Spaces Moved 6342 | 1 95 420 171 126 253 160 384 611 451 245 429 117 651 29 177 1059 963 Core 6 | . . . . . . . . . . . . . . . . . 6 Treads 637 | . . 34 128 . . . . . . . . . . . . . 475 Legs 169 | 1 95 73 . . . . . . . . . . . . . . . Wheels 545 | . . 313 . . . . . . . . . . . . . . 232 Hover . | . . . . . . . . . . . . . . . . . . Flight 4985 | . . . 43 126 253 160 384 611 451 245 429 117 651 29 177 1059 250 Fastest Speed 23 | 120 120 80 34 34 34 34 26 26 26 26 26 26 26 23 26 24 24 Average Speed 53 | 120 120 93 131 34 34 34 28 27 26 26 26 26 30 23 27 24 138 Slowest Speed 250 | 120 120 160 187 34 107 34 34 29 29 26 94 26 99 29 99 26 250 Overloaded Moves . | . . . . . . . . . . . . . . . . . . Propulsion Burnouts . | . . . . . . . . . . . . . . . . . . Robots Hopped 26 | . . . . 1 . . . 3 1 2 1 . 7 . . 11 . Potential Cave-ins . | . . . . . . . . . . . . . . . . . . Cave-ins Triggered . | . . . . . . . . . . . . . . . . . . Exploration Rate (%) 39 | 2 23 83 22 25 61 44 41 21 65 8 45 74 63 2 90 18 24 Regions Visited 17 Branch Regions 8 Pre-discovered Areas 4 | . . 2 . . 1 . . . . . . 1 . . . . . Known Exits Taken 5 | . . . 1 1 . . . 1 . . . . . 1 . 1 . Unknown Exits Taken 11 | 1 1 1 . . 1 1 1 . 1 1 1 1 1 . . . . Scrap Searched 2 | . . 1 . . . . . . . . 1 . . . . . . Spaces Dug 26 | . . . . . . . 3 . 2 1 2 . . 2 . . 16 Terrain Destroyed 265 | . 1 . 12 . . . 75 15 2 1 48 . 2 2 . 26 81 Melee 10 | . . . . . . . 3 . 2 1 2 . . 2 . . . Projectile 48 | . . . . . . . . . . . . . . . . 26 22 AOE 206 | . 1 . 12 . . . 72 15 . . 46 . 2 . . . 58 Terrain Rammed . | . . . . . . . . . . . . . . . . . . Walls Destroyed . | . . . . . . . . . . . . . . . . . . Machines Disabled . | . . . . . . . . . . . . . . . . . . Actions | -11 -10 -10 -9 -9 -9 -8 -8 -7 -7 -6 -6 -6 -5 -5 -5 -4 -3 --------- Run | Yrd Mat Min Mat Min Exi Min Mat Fac Sto Fac Low Dat Pro Fac DSF Fac Res Total 7612 | . 109 476 242 130 267 163 521 706 518 324 508 116 746 36 240 1221 1289 Wait 473 | . . . 1 4 . . 82 30 3 70 24 . 39 . 30 118 72 Move 6274 | . 94 419 170 123 252 159 383 604 448 240 426 116 637 28 176 1036 963 Hop 25 | . . . . 1 . . . 3 1 2 1 . 6 . . 11 . Pick Up 71 | . 3 7 3 . 4 . 4 10 8 . 4 . 2 . 3 5 18 Fast Attach 74 | . 1 2 5 . 1 . 5 7 2 6 1 . 4 1 3 5 31 Attach 59 | . . 2 4 . 3 . 2 4 . . 7 . 10 3 3 3 18 Detach 51 | . . . 4 . 2 . . 4 . . 7 . 11 2 2 . 19 Swap 97 | . 2 7 9 . . . 12 9 9 1 1 . 2 . 2 5 38 Drop 99 | . 1 9 9 . 5 . 8 12 11 3 3 . 4 . 2 5 27 Fire 228 | . 8 30 15 . . . 6 19 . . 8 . 10 . 1 33 98 Melee 107 | . . . 21 2 . 4 19 2 36 2 13 . 5 2 . . 1 Ram . | . . . . . . . . . . . . . . . . . . Kick . | . . . . . . . . . . . . . . . . . . Crush 5 | . . . 1 . . . . . . . . . . . . . 4 Escape Stasis 18 | . . . . . . . . . . . . . . . 18 . . Rewire 31 | . . . . . . . . 2 . . 13 . 16 . . . . Trap . | . . . . . . . . . . . . . . . . . . Miscellaneous . | . . . . . . . . . . . . . . . . . . Route ------- -11/Scrapyard -10/Materials -10/Mines -9/Materials -9/Mines -9/Exiles -8/Mines -8/Materials -7/Factory (discovered 4 exits: *Fac / *Sto / Low x2) -7/Storage -6/Factory -6/Lower Caves -6/Data Miner -5/Proximity Caves -5/Factory -5/DSF -4/Factory -3/Research History --------- Turn | Location | Event 1 | -11/Scrapyard | Discovered new exit (range 0) 1 | -11/Scrapyard | Entered Materials 93 | -10/Materials | Discovered new exit (range 11) 144 | -10/Materials | Entered Mines 221 | -10/Mines | Received a Mining Laser from a helpful Derelict 288 | -10/Mines | A weapon hastily lodged in a ceiling crevice suddenly fell to the ground 314 | -10/Mines | Build established: Mutant 441 | -10/Mines | Learned location of Zion (-7) 541 | -10/Mines | Discovered new exit (range 6) 565 | -10/Mines | Core integrity fell below 50% 601 | -10/Mines | Lost 3 parts (1p2n) 638 | -10/Mines | Entered Materials 638 | -9/Materials | Evolved 2 slots: Propulsion x1, Utility x1 948 | -9/Materials | Destroyed 9 combat bots 978 | -9/Materials | Discovered new exit (range 12) 984 | -9/Materials | Identified exit to Mines 984 | -9/Materials | Entered Mines 994 | -9/Mines | Assembled infested the area 999 | -9/Mines | Assisted by a Guerilla fighting off Assembled 1034 | -9/Mines | Deemed a non-threat by the Exiles lab entrance 1034 | -9/Mines | Discovered new exit (range 5) 1035 | -9/Mines | Identified exit to Exiles 1035 | -9/Mines | Entered Exiles 1044 | -9/Exiles | Met 8R-AWN 1049 | -9/Exiles | Met EX-HEX 1059 | -9/Exiles | Met EX-BIN 1063 | -9/Exiles | Aligned with FarCom system 1063 | -9/Exiles | Given EX-Vault access code 1072 | -9/Exiles | Opened EX-Vault 1077 | -9/Exiles | Found Field Lobotomy Kit 1079 | -9/Exiles | Found AWS/Thermal 1084 | -9/Exiles | Found Trap Reconfigurator 1095 | -9/Exiles | Warned to stay clear of 0b10 Research branches 1105 | -9/Exiles | Met EX-DEC 1131 | -9/Exiles | Discovered new exit (range 12) 1135 | -9/Exiles | Stole three prototypes: Trap Reconfigurator, AWS/Thermal, Field Lobotomy Kit 1135 | -9/Exiles | Entered Mines 1193 | -8/Mines | Discovered new exit (range 14) 1198 | -8/Mines | Entered Materials 1198 | -8/Materials | Evolved 2 slots: Propulsion x1, Utility x1 1231 | -8/Materials | Repaired Lgt. Ion Engine 1287 | -8/Materials | Repaired Imp. Flight Unit 1454 | -8/Materials | Discovered new exit (range 16) 1472 | -8/Materials | Entered Factory 1472 | -7/Factory | Evolved 2 slots: Utility x2 1474 | -7/Factory | FarCom data flow suspended 1606 | -7/Factory | Repaired Broken Lgt. Nuclear Core 1637 | -7/Factory | Build established: Hacker-Sprinter 1695 | -7/Factory | Lost 3 parts (1p1n1u) 1710 | -7/Factory | Discovered new exit (range 15) 1719 | -7/Factory | Identified exit to Storage 1719 | -7/Factory | Identified exit to Lower Caves 1761 | -7/Factory | Entered Storage 1761 | -7/Storage | Accompanied by 1 ally 2013 | -7/Storage | Discovered new exit (range 10) 2015 | -7/Storage | Entered Factory 2015 | -6/Factory | Evolved 2 slots: Utility x2 2103 | -6/Factory | Repaired Hvy. Deuterium Engine 2165 | -6/Factory | Discovered new exit (range 6) 2166 | -6/Factory | Entered Lower Caves 2166 | -6/Lower Caves | Spotted EY-7LK(f) 2166 | -6/Lower Caves | Spotted 5J-BYN(f) 2168 | -6/Lower Caves | Encountered a Master Thief 2168 | -6/Lower Caves | Encountered a Master Thief 2171 | -6/Lower Caves | AWS/Thermal stolen by Master Thief 2172 | -6/Lower Caves | Trap Reconfigurator stolen by Master Thief 2176 | -6/Lower Caves | Destroyed EY-7LK(f) 2187 | -6/Lower Caves | Learned Factory terminal intel 2284 | -6/Lower Caves | Attacked by a faux Warlord 2385 | -6/Lower Caves | A Derelict revealed a hidden shortcut to meet someone special 2388 | -6/Lower Caves | Entered Data Miner 2388 | -6/Data Miner | Discovered new exit (range 6) 2393 | -6/Data Miner | Met Data Miner 2399 | -6/Data Miner | Learned location of Section 7 (-3) 2399 | -6/Data Miner | Acquired the access code to Warlord's prototype stash 2402 | -6/Data Miner | Received God Mode back door access code from Data Miner 2419 | -6/Data Miner | Entered Proximity Caves 2443 | -5/Proximity Caves | Spotted B-75 Beast 2444 | -5/Proximity Caves | Assimilated B-75 Beast with FLK Orb 2473 | -5/Proximity Caves | Learned Factory terminal intel 2479 | -5/Proximity Caves | Core integrity fell below 50% 2493 | -5/Proximity Caves | Snuck into a huge 0b10 base via the rear entrance 2501 | -5/Proximity Caves | Discovered new exit (range 8) 2576 | -5/Proximity Caves | Spotted B-75 Beast 2602 | -5/Proximity Caves | Lost 4 allies 2649 | -5/Proximity Caves | Fabricated H-77 Assassin (x2) 2736 | -5/Proximity Caves | Entered Factory 2736 | -5/Factory | Accompanied by 2 allies 2736 | -5/Factory | Evolved 2 slots: Propulsion x1, Utility x1 2737 | -5/Factory | Loaded intel: 25 terminal locations 2753 | -5/Factory | Identified exit to DSF 2753 | -5/Factory | Spotted B-75 Beast 2754 | -5/Factory | Entered DSF 2754 | -5/DSF | Accompanied by 2 allies 2755 | -5/DSF | Joined Warlord attack on 0b10 via DSF 2764 | -5/DSF | Assimilated H-71 Marshal with FLK Orb 2784 | -5/DSF | Lost 3 parts (1p2n) 2845 | -5/DSF | Discovered new exit (range 14) 2869 | -5/DSF | Entered Factory 2869 | -4/Factory | Accompanied by 3 allies 2869 | -4/Factory | Evolved 2 slots: Propulsion x1, Utility x1 2870 | -4/Factory | Loaded intel: 28 terminal locations 2890 | -4/Factory | Discovered new exit (range 5) 2982 | -4/Factory | Fabricated X-77 Beamer (x2) 3028 | -4/Factory | Fabricated X-77 Beamer? 3067 | -4/Factory | Repaired Cld. VTOL Module 3201 | -4/Factory | Garrison activated, responded to threat 3255 | -4/Factory | Fabricated H-77 Assassin? 3300 | -4/Factory | Identified exit to Research 3368 | -4/Factory | Entered Research 3368 | -3/Research | Accompanied by 2 allies 3368 | -3/Research | Evolved 2 slots: Power x1, Propulsion x1 3445 | -3/Research | Fabricated Enh. Nova Cannon (x2) 3772 | -3/Research | Found Prototype Launcher 3772 | -3/Research | Identified Mni. Smartbomb Launcher 3962 | -3/Research | Build established: Scavenger-Mutant 4588 | -3/Research | Spotted B-86 Titan 4591 | -3/Research | Assimilated B-86 Titan with FLK Orb 4619 | -3/Research | Assimilated H-71 Marshal with FLK Orb 4868 | -3/Research | First assault squad dispatched 5152 | -3/Research | Assimilated A-27 Freighter with FLK Orb 5153 | -3/Research | Cargo convoy interrupted 5155 | -3/Research | Spotted Executioner 5176 | -3/Research | Incoming assault squad redirected 5180 | -3/Research | Incoming assault squad redirected 5183 | -3/Research | Destroyed 8 combat bots 5192 | -3/Research | Core integrity fell below 50% 5192 | -3/Research | System corruption reached 10% 5198 | -3/Research | Found Prototype Processor 5198 | -3/Research | Identified Exp. Melee Analysis Suite 5202 | -3/Research | Core integrity fell below 20% 5206 | -3/Research | Self-destructed Last Messages --------------- 05200_ Penetrated by Slug. 05200_ Slug penetrates Prototyping Station. 05201_ K-01 Serf collects debris. 05201_ M-13 Machinist repairs P-80 Master Adv. Heat Sink. 05201_ U-05 Engineer builds a Wall. 05201_ P-80 Master resets H-77 Assassin, system corruption cleaned. 05201_ K-01 Serf collects debris. 05202_ Penetrated by Slug. 05203_ G-73 Enforcer Myomer Leg severed. 05204_ K-01 Serf collects debris. 05204_ M-13 Machinist fits Backup Propulsion I on K-01 Serf. 05204_ U-05 Engineer builds a Door. 05205_ Penetrated by Slug. 05205_ Exp. Biometal Heavy Treads destroyed. 05205_ U-05 Engineer destroyed. 05205_ U-05 Engineer builds a Wall. 05205_ K-01 Serf collects debris. 05205_ Molecular Scythe destroyed. 05205_ Exp. Coolant Injector destroyed. 05206_ P-80 Master resets P-80 Master, system corruption cleaned. Map ----- +----------------------------------------------------+ | ?????????????????????????????????????????????????? | | ?????????????????????????????????????????????????? | | ?????????????????????????????????????????????????? | | ?????????????????????????????????????????????????? | | ?????????????????????????????????????????????????? | | ?????????????????????????????????????????????????? | | ?????????????????????????????????????????????????? | | ?????????????????????????????????????????????????? | | ?????????????????????????????????????????????????? | | ?????????????????????????????????????????????????? | | ?????????????????????????????????????????????????? | | ?????????????????????????????????????????????????? | | ?????????????????????????????????????????????????? | | ?????????????????????????????????????????????????? | | ??????????????????###?######?????????????????????? | | ??????????????????# #?????????????????????? | | ??????????????????# #?????????????????????? | | ????????????# ???# """" #?????????????????????? | | ????????????# ??# """" ??????????????????????? | | ????????????# ??# """" ??????????????????????? | | ???????####?# ??# """" ?????#?????????????????? | | ???????? # ?? """" ???? ##????????????????? | | ???????? # ??? ???? "#????????????????? | | ???????""" # #??? = ??? #?????????????????? | | ????? """ # ######g#### ######+######?????? | | ???"" """ # &!!/%!!@k ??? | | ?? g A g ]!/! != ??? | | ?? R # !!!!!k[ ??? | | ???????""" # ]!!]!=g= ???? | | ???????""" %# ]!![*h[;####################???? | | ?????????" # % ]!![=i#! #??????????????? | | ??????????? # !% ][h*# #??????????????? | | ????????????# %pEpp[!+! #??????????????? | | ????????????# ! ump p|xt%! #??????????????? | | ????????????#w =k% p!=# #??????????????? | | ????????????# h%=[Y|!#//! #??????????????? | | ????????????# ####=###//! #??????????????? | | ????????????# C####=# #/! #??????????????? | | ????????????#A # #!#############??????????????? | | ????????????# #u ###?????????????????##### | | ????????????# ! * #?????????????????# | | ????????????# #?????????????????# | | ????????????# =% #?????????????????# | | ????????????# != #?????????????????# | | ????????????# %! #?????????????????# | | ????????????# ! #?????????????????# | | ????????????# #?????????????????# | | ??????????? #?????????####????# | | ??????????### # #/ #+##############T ########## | | ????????????# # ^ % + % | +----------------------------------------------------+ Best States ------------- Heat Dissipation 160 Coolant Potential 120 Energy Generation 43 Energy Capacity 2050 Matter Stores 300 Matter Capacity 300 Sight Range 22 Robot Scan Range 18 Terrain Scan Density 85 Jamming Range 16 Additional Mass Support 9 Corruption Containment 12 Armor Coverage 1200 Resistance: TH 30 Evasion (%) 72 Targeting Accuracy 6 Melee Accuracy 12 Recoil Reduction 6 Offensive Hacking 42 Defensive Hacking 21 Authchip Count 2 Item Schematics ----------------- Hacking Suite | -8/Materials | Scanalyzed VTOL Module | -8/Materials | Scanalyzed Lrg. Storage Unit | -8/Materials | Scanalyzed Thermal Generator | -8/Materials | Extracted Cesium-ion Thruster | -8/Materials | Extracted Hpw. Shotgun | -8/Materials | Extracted Med. Armor Plating | -8/Materials | Extracted Adv. Weight Redist. System | -8/Materials | Extracted Titanium Leg | -8/Materials | Extracted Hpw. Tractor Beam | -8/Materials | Extracted Field Recycling Unit | -8/Materials | Extracted Combat Drone Bay | -6/Data Miner | Free Lgt. Regenerative Plating | -6/Data Miner | Free Enh. Flexi-carbon Leg | -6/Data Miner | Free Imp. Thermal Defense Suite | -6/Data Miner | Free Neutron Cannon | -6/Data Miner | Free Adv. Medium Treads | -6/Data Miner | Free Adv. Reaction Control System | -6/Data Miner | Free Adv. Datajack | -6/Data Miner | Free Imp. Component Analysis Suite | -6/Data Miner | Free Lrn. Sensor Array | -6/Data Miner | Free Nova Cannon | -6/Data Miner | Free Adv. Force Field | -6/Data Miner | Free Robot Schematics ------------------ E-15 Imp | -6/Data Miner | Free A-15 Conveyor | -6/Data Miner | Free M-22 Extractor | -6/Data Miner | Free B-60 Warrior | -6/Data Miner | Free X-77 Beamer | -6/Data Miner | Free H-77 Assassin | -6/Data Miner | Free C-55 Analyst | -3/Research | Hacked Fabricated ------------ H-77 Assassin | x2 | -5/Proximity Caves X-77 Beamer | x2 | -4/Factory | Authchip X-77 Beamer | x2 | -4/Factory | Authchip H-77 Assassin | x2 | -4/Factory Enh. Nova Cannon | x2 | -3/Research | Preloaded Repaired ---------- Lgt. Ion Engine | 27% | -8/Materials Imp. Flight Unit | 45% | -8/Materials Lgt. Nuclear Core | 18% | -7/Factory | Broken Hvy. Deuterium Engine | 61% | -6/Factory Cld. VTOL Module | 3% | -4/Factory Alien Tech Used ----------------- None Achievements -------------- None Challenges ------------ None Game ------ Seed GyrokineticTerrorSteel Manual? 0 Play Time 01:03:21 Cumulative 1142.3 hours Start 2025.07.06 @ 11:59:22 End 2025.07.06 @ 13:20:24 Sessions 3 Manual Loads 0 Difficulty Rogue Special Mode None Game No. 1401 Rogue 1117 Adventurer 124 Explorer 160 Win Type - Total 50 Types 36/0/8/4/1/0/0/1/0/0 Lore% 92 Gallery% 88 Achievement% 81 Wizard Run 0 Options --------- Layout 0 ASCII 0 Keyboard 1 Movement Numpad Keybinds 0 Fullscreen 2 Font 18/X11 Map View 76x50 Zoom Use 0% Tactical HUD 1 Map Filters NONE Filters NONE Steam 1 RUN: f0746531-f33d-458b-b8a0-989056635250